[Event "Titled Tuesday Blitz August 02 Early 2022"]
[White "Ismayil, Malak"]
[Black "Shipov, Sergei"]
[WhiteFideId "13412604"]
[BlackFideId "4113624"]
[WhiteElo "1879"]
[BlackElo "2780"]
[Result "0-1"]
[Round "05"]
[TimeControl "180+1"]
[Date "2022.08.02"]
[WhiteClock "0:00:02"]
[BlackClock "0:00:25"]

1. e4 {[%clk 0:03:00]}  c5 {[%clk 0:02:59]} 2. Nf3 {[%clk 0:03:00]}  d6 {[%clk 0:02:59]} 3. Bb5+ {[%clk 0:02:59]}  Bd7 {[%clk 0:02:59]} 4. Bxd7+ {[%clk 0:02:59]}  Qxd7 {[%clk 0:03:00]} 5. O-O {[%clk 0:02:59]}  Nf6 {[%clk 0:03:00]} 6. Qe2 {[%clk 0:02:59]}  Nc6 {[%clk 0:02:59]} 7. Rd1 {[%clk 0:02:59]}  e6 {[%clk 0:02:58]} 8. d4 {[%clk 0:03:00]}  cxd4 {[%clk 0:02:57]} 9. Nxd4 {[%clk 0:03:01]}  a6 {[%clk 0:02:57]} 10. c4 {[%clk 0:03:00]}  Rc8 {[%clk 0:02:57]} 11. Nc3 {[%clk 0:02:59]}  Be7 {[%clk 0:02:58]} 12. b3 {[%clk 0:02:59]}  O-O {[%clk 0:02:58]} 13. Bb2 {[%clk 0:02:59]}  Qc7 {[%clk 0:02:58]} 14. h3 {[%clk 0:02:56]}  Rfe8 {[%clk 0:02:57]} 15. Rac1 {[%clk 0:02:55]}  Qa5 {[%clk 0:02:56]} 16. Ba1 {[%clk 0:02:39]}  h6 {[%clk 0:02:54]} 17. Kh1 {[%clk 0:02:36]}  Nxd4 {[%clk 0:02:46]} 18. Rxd4 {[%clk 0:02:35]}  b5 {[%clk 0:02:47]} 19. cxb5 {[%clk 0:02:22]}  axb5 {[%clk 0:02:46]} 20. b4 {[%clk 0:02:22]}  Qb6 {[%clk 0:02:42]} 21. Rdd1 {[%clk 0:02:17]}  Rb8 {[%clk 0:02:41]} 22. f4 {[%clk 0:01:54]}  Rec8 {[%clk 0:02:40]} 23. Qd3 {[%clk 0:01:25]}  Rc4 {[%clk 0:02:29]} 24. a4 {[%clk 0:01:21]}  Rxb4 {[%clk 0:02:25]} 25. axb5 {[%clk 0:01:13]}  h5 {[%clk 0:02:16]} 26. Qf3 {[%clk 0:01:06]}  h4 {[%clk 0:02:15]} 27. e5 {[%clk 0:00:59]}  Ne8 {[%clk 0:02:13]} 28. Rb1 {[%clk 0:00:45]}  Rc4 {[%clk 0:01:46]} 29. Ne4 {[%clk 0:00:35]}  d5 {[%clk 0:01:40]} 30. Nd2 {[%clk 0:00:25]}  Ra4 {[%clk 0:01:37]} 31. f5 {[%clk 0:00:25]}  Bg5 {[%clk 0:01:26]} 32. fxe6 {[%clk 0:00:15]}  Qxe6 {[%clk 0:01:16]} 33. Nf1 {[%clk 0:00:14]}  Nc7 {[%clk 0:01:07]} 34. Qb3 {[%clk 0:00:14]}  Ra5 {[%clk 0:01:01]} 35. b6 {[%clk 0:00:14]}  Na6 {[%clk 0:00:50]} 36. Bc3 {[%clk 0:00:12]}  Rc5 {[%clk 0:00:43]} 37. Bd4 {[%clk 0:00:12]}  Rc4 {[%clk 0:00:42]} 38. Ne3 {[%clk 0:00:12]}  Bxe3 {[%clk 0:00:42]} 39. Qxe3 {[%clk 0:00:13]}  Nb4 {[%clk 0:00:42]} 40. Qe1 {[%clk 0:00:09]}  Nc6 {[%clk 0:00:38]} 41. Ba1 {[%clk 0:00:09]}  Re4 {[%clk 0:00:34]} 42. Qd2 {[%clk 0:00:08]}  d4 {[%clk 0:00:35]} 43. b7 {[%clk 0:00:07]}  Qxe5 {[%clk 0:00:34]} 44. Rdc1 {[%clk 0:00:05]}  Re2 {[%clk 0:00:32]} 45. Qd1 {[%clk 0:00:03]}  Qe4 {[%clk 0:00:32]} 46. Qg1 {[%clk 0:00:03]}  d3 {[%clk 0:00:30]} 47. Re1 {[%clk 0:00:02]}  Rxb7 {[%clk 0:00:26]} 48. Rxe2 {[%clk 0:00:01]}  dxe2 {[%clk 0:00:25]} 49. Rxb7 {[%clk 0:00:02]}  e1=Q {[%clk 0:00:25]} 0-1


[Site "https://www.chess.com"]

[Event "Titled Tuesday Blitz August 02 Early 2022"]
[White "Itgelt, Khuyagtsogt"]
[Black "Hakobyan, Aram"]
[WhiteFideId "4902912"]
[BlackFideId "13306677"]
[WhiteElo "2012"]
[BlackElo "2557"]
[Result "0-1"]
[Round "05"]
[TimeControl "180+1"]
[Date "2022.08.02"]
[WhiteClock "0:00:20"]
[BlackClock "0:02:12"]

1. d4 {[%clk 0:03:00]}  Nf6 {[%clk 0:03:00]} 2. c4 {[%clk 0:03:01]}  e6 {[%clk 0:03:00]} 3. Nf3 {[%clk 0:03:01]}  b6 {[%clk 0:03:01]} 4. g3 {[%clk 0:02:58]}  Bb7 {[%clk 0:03:01]} 5. Bg2 {[%clk 0:02:58]}  g6 {[%clk 0:03:02]} 6. O-O {[%clk 0:02:58]}  Bg7 {[%clk 0:03:02]} 7. Nc3 {[%clk 0:02:59]}  Ne4 {[%clk 0:03:02]} 8. Qc2 {[%clk 0:02:51]}  Nxc3 {[%clk 0:03:02]} 9. bxc3 {[%clk 0:02:50]}  O-O {[%clk 0:03:02]} 10. e4 {[%clk 0:02:50]}  d6 {[%clk 0:03:02]} 11. h4 {[%clk 0:02:44]}  Nd7 {[%clk 0:03:02]} 12. Re1 {[%clk 0:02:42]}  e5 {[%clk 0:02:59]} 13. a4 {[%clk 0:02:38]}  a5 {[%clk 0:02:59]} 14. Ba3 {[%clk 0:02:37]}  Qe7 {[%clk 0:02:58]} 15. Rab1 {[%clk 0:02:33]}  Rfe8 {[%clk 0:02:57]} 16. h5 {[%clk 0:02:02]}  exd4 {[%clk 0:02:47]} 17. cxd4 {[%clk 0:01:51]}  Bxe4 {[%clk 0:02:47]} 18. Rxe4 {[%clk 0:01:36]}  Qxe4 {[%clk 0:02:47]} 19. Qxe4 {[%clk 0:01:37]}  Rxe4 {[%clk 0:02:48]} 20. Ng5 {[%clk 0:01:23]}  Ree8 {[%clk 0:02:48]} 21. Bxa8 {[%clk 0:01:04]}  Rxa8 {[%clk 0:02:49]} 22. Re1 {[%clk 0:01:04]}  Bf6 {[%clk 0:02:28]} 23. Nf3 {[%clk 0:00:58]}  gxh5 {[%clk 0:02:28]} 24. Bc1 {[%clk 0:00:52]}  Nf8 {[%clk 0:02:24]} 25. d5 {[%clk 0:00:45]}  Nd7 {[%clk 0:02:22]} 26. Ba3 {[%clk 0:00:23]}  Kf8 {[%clk 0:02:21]} 27. Kf1 {[%clk 0:00:24]}  Re8 {[%clk 0:02:21]} 28. Rxe8+ {[%clk 0:00:24]}  Kxe8 {[%clk 0:02:22]} 29. Ke2 {[%clk 0:00:25]}  Kf8 {[%clk 0:02:19]} 30. Ke3 {[%clk 0:00:25]}  Kg7 {[%clk 0:02:19]} 31. Ke4 {[%clk 0:00:25]}  Kg6 {[%clk 0:02:18]} 32. Nh2 {[%clk 0:00:20]}  h4 {[%clk 0:02:17]} 33. gxh4 {[%clk 0:00:20]}  Bxh4 {[%clk 0:02:16]} 34. f4 {[%clk 0:00:21]}  f5+ {[%clk 0:02:16]} 35. Kf3 {[%clk 0:00:21]}  Bf6 {[%clk 0:02:17]} 36. Nf1 {[%clk 0:00:22]}  h5 {[%clk 0:02:17]} 37. Ne3 {[%clk 0:00:21]}  h4 {[%clk 0:02:17]} 38. Kg2 {[%clk 0:00:21]}  Bd4 {[%clk 0:02:17]} 39. Nf1 {[%clk 0:00:20]}  Nf6 {[%clk 0:02:12]} 0-1


[Site "https://www.chess.com"]

[Event "Titled Tuesday Blitz August 02 Early 2022"]
[White "Jakubowski, Krzysztof"]
[Black "Pranav Anand"]
[WhiteFideId "1112848"]
[BlackFideId "46626786"]
[WhiteElo "2365"]
[BlackElo "2259"]
[Result "0-1"]
[Round "05"]
[TimeControl "180+1"]
[Date "2022.08.02"]
[WhiteClock "0:00:01"]
[BlackClock "0:00:19"]

1. e4 {[%clk 0:03:00]}  b6 {[%clk 0:02:59]} 2. d4 {[%clk 0:02:58]}  Bb7 {[%clk 0:03:00]} 3. Bd3 {[%clk 0:02:57]}  e6 {[%clk 0:03:00]} 4. Qe2 {[%clk 0:02:52]}  Be7 {[%clk 0:02:55]} 5. c4 {[%clk 0:02:48]}  d6 {[%clk 0:02:53]} 6. f4 {[%clk 0:02:44]}  Nf6 {[%clk 0:02:51]} 7. Nc3 {[%clk 0:02:43]}  c5 {[%clk 0:02:37]} 8. d5 {[%clk 0:02:41]}  exd5 {[%clk 0:02:36]} 9. exd5 {[%clk 0:02:32]}  O-O {[%clk 0:02:35]} 10. Nf3 {[%clk 0:02:23]}  Re8 {[%clk 0:02:29]} 11. O-O {[%clk 0:02:13]}  Bf8 {[%clk 0:02:30]} 12. Qc2 {[%clk 0:02:13]}  Na6 {[%clk 0:02:30]} 13. a3 {[%clk 0:02:11]}  Nc7 {[%clk 0:02:30]} 14. Ng5 {[%clk 0:02:01]}  g6 {[%clk 0:02:28]} 15. f5 {[%clk 0:02:01]}  Bg7 {[%clk 0:02:28]} 16. Nxf7 {[%clk 0:01:52]}  Kxf7 {[%clk 0:02:27]} 17. fxg6+ {[%clk 0:01:51]}  hxg6 {[%clk 0:02:28]} 18. Bxg6+ {[%clk 0:01:50]}  Kg8 {[%clk 0:02:28]} 19. Bxe8 {[%clk 0:01:41]}  Ncxe8 {[%clk 0:02:29]} 20. Bg5 {[%clk 0:01:39]}  Qd7 {[%clk 0:02:27]} 21. Rae1 {[%clk 0:01:37]}  Qg4 {[%clk 0:02:12]} 22. Qg6 {[%clk 0:01:25]}  Qh5 {[%clk 0:01:27]} 23. Qf5 {[%clk 0:01:11]}  Bc8 {[%clk 0:01:24]} 24. Qf4 {[%clk 0:01:11]}  Qg6 {[%clk 0:01:19]} 25. Bxf6 {[%clk 0:01:07]}  Nxf6 {[%clk 0:01:16]} 26. Qxd6 {[%clk 0:01:05]}  Bh3 {[%clk 0:01:16]} 27. Qg3 {[%clk 0:01:00]}  Qxg3 {[%clk 0:01:13]} 28. hxg3 {[%clk 0:01:01]}  Bg4 {[%clk 0:01:14]} 29. Re7 {[%clk 0:00:59]}  Nh5 {[%clk 0:00:55]} 30. Rfe1 {[%clk 0:00:55]}  Nxg3 {[%clk 0:00:52]} 31. Re8+ {[%clk 0:00:54]}  Rxe8 {[%clk 0:00:52]} 32. Rxe8+ {[%clk 0:00:55]}  Kf7 {[%clk 0:00:52]} 33. Ra8 {[%clk 0:00:53]}  Bd4+ {[%clk 0:00:51]} 34. Kh2 {[%clk 0:00:51]}  Nf1+ {[%clk 0:00:50]} 35. Kh1 {[%clk 0:00:51]}  Ng3+ {[%clk 0:00:50]} 36. Kh2 {[%clk 0:00:50]}  Nf1+ {[%clk 0:00:50]} 37. Kh1 {[%clk 0:00:50]}  Ne3 {[%clk 0:00:43]} 38. Nb5 {[%clk 0:00:49]}  Nxc4 {[%clk 0:00:42]} 39. Rxa7+ {[%clk 0:00:48]}  Kf6 {[%clk 0:00:42]} 40. d6 {[%clk 0:00:44]}  Ne5 {[%clk 0:00:40]} 41. Rb7 {[%clk 0:00:40]}  Nd7 {[%clk 0:00:37]} 42. b4 {[%clk 0:00:35]}  Be3 {[%clk 0:00:35]} 43. Nc3 {[%clk 0:00:26]}  Ke5 {[%clk 0:00:32]} 44. bxc5 {[%clk 0:00:21]}  Bxc5 {[%clk 0:00:33]} 45. a4 {[%clk 0:00:21]}  Bxd6 {[%clk 0:00:29]} 46. a5 {[%clk 0:00:20]}  bxa5 {[%clk 0:00:27]} 47. Rb5+ {[%clk 0:00:20]}  Kd4 {[%clk 0:00:23]} 48. Rxa5 {[%clk 0:00:19]}  Kxc3 {[%clk 0:00:21]} 49. Rd5 {[%clk 0:00:13]}  Bg3 {[%clk 0:00:21]} 50. Rg5 {[%clk 0:00:12]}  Ne5 {[%clk 0:00:22]} 51. Rg8 {[%clk 0:00:07]}  Kd4 {[%clk 0:00:22]} 52. Rf8 {[%clk 0:00:06]}  Ke4 {[%clk 0:00:22]} 53. Kg1 {[%clk 0:00:07]}  Bf4 {[%clk 0:00:21]} 54. Kf2 {[%clk 0:00:07]}  Nd3+ {[%clk 0:00:21]} 55. Kg1 {[%clk 0:00:07]}  Be3+ {[%clk 0:00:21]} 56. Kh2 {[%clk 0:00:06]}  Bf4+ {[%clk 0:00:21]} 57. Kg1 {[%clk 0:00:06]}  Be5 {[%clk 0:00:21]} 58. Kf1 {[%clk 0:00:05]}  Nf4 {[%clk 0:00:20]} 59. Kf2 {[%clk 0:00:04]}  Be6 {[%clk 0:00:20]} 60. Re8 {[%clk 0:00:04]}  Bd5 {[%clk 0:00:20]} 61. Kg3 {[%clk 0:00:03]}  Ne2+ {[%clk 0:00:19]} 62. Kf2 {[%clk 0:00:03]}  Nf4 {[%clk 0:00:19]} 63. Kg3 {[%clk 0:00:03]}  Nh5+ {[%clk 0:00:19]} 64. Kh4 {[%clk 0:00:03]}  Nf6 {[%clk 0:00:19]} 65. Rc8 {[%clk 0:00:01]}  Kf5 {[%clk 0:00:19]} 0-1


[Site "https://www.chess.com"]

[Event "Titled Tuesday Blitz August 02 Early 2022"]
[White "Kovacevic, Radmila"]
[Black "Csonka, Balazs"]
[WhiteFideId "933171"]
[BlackFideId "742910"]
[WhiteElo "2157"]
[BlackElo "2404"]
[Result "0-1"]
[Round "05"]
[TimeControl "180+1"]
[Date "2022.08.02"]
[WhiteClock "0:00:06"]
[BlackClock "0:00:07"]

1. e4 {[%clk 0:02:57]}  c5 {[%clk 0:02:59]} 2. Nf3 {[%clk 0:02:56]}  e6 {[%clk 0:02:59]} 3. c3 {[%clk 0:02:55]}  Nf6 {[%clk 0:02:55]} 4. e5 {[%clk 0:02:54]}  Nd5 {[%clk 0:02:55]} 5. d4 {[%clk 0:02:55]}  cxd4 {[%clk 0:02:55]} 6. Nxd4 {[%clk 0:02:55]}  Qc7 {[%clk 0:02:29]} 7. Qe2 {[%clk 0:02:53]}  a6 {[%clk 0:02:23]} 8. g3 {[%clk 0:02:50]}  Bc5 {[%clk 0:02:19]} 9. Nb3 {[%clk 0:02:28]}  Ba7 {[%clk 0:02:11]} 10. Bg2 {[%clk 0:02:28]}  Ne7 {[%clk 0:02:11]} 11. N1d2 {[%clk 0:02:17]}  O-O {[%clk 0:01:58]} 12. Nc4 {[%clk 0:02:03]}  b5 {[%clk 0:01:17]} 13. Nd6 {[%clk 0:01:48]}  Nbc6 {[%clk 0:01:15]} 14. Bf4 {[%clk 0:01:29]}  Rb8 {[%clk 0:00:59]} 15. h4 {[%clk 0:01:27]}  b4 {[%clk 0:00:49]} 16. h5 {[%clk 0:01:07]}  bxc3 {[%clk 0:00:48]} 17. bxc3 {[%clk 0:01:08]}  h6 {[%clk 0:00:26]} 18. O-O {[%clk 0:01:01]}  a5 {[%clk 0:00:26]} 19. Qg4 {[%clk 0:00:58]}  Kh8 {[%clk 0:00:26]} 20. Rac1 {[%clk 0:00:54]}  Ba6 {[%clk 0:00:23]} 21. Rfd1 {[%clk 0:00:51]}  a4 {[%clk 0:00:17]} 22. Nd4 {[%clk 0:00:51]}  Rb2 {[%clk 0:00:17]} 23. Rc2 {[%clk 0:00:35]}  a3 {[%clk 0:00:08]} 24. Rdd2 {[%clk 0:00:31]}  Nxd4 {[%clk 0:00:07]} 25. Bxh6 {[%clk 0:00:17]}  gxh6 {[%clk 0:00:05]} 26. Qf4 {[%clk 0:00:16]}  Ng8 {[%clk 0:00:05]} 27. Nxf7+ {[%clk 0:00:11]}  Rxf7 {[%clk 0:00:04]} 28. Qxf7 {[%clk 0:00:11]}  Rxc2 {[%clk 0:00:03]} 29. Rxd4 {[%clk 0:00:10]}  Rc1+ {[%clk 0:00:02]} 30. Kh2 {[%clk 0:00:10]}  Bd3 {[%clk 0:00:02]} 31. Be4 {[%clk 0:00:10]}  Bxe4 {[%clk 0:00:02]} 32. Rxe4 {[%clk 0:00:11]}  Qc6 {[%clk 0:00:02]} 33. Qf4 {[%clk 0:00:09]}  Rxc3 {[%clk 0:00:01]} 34. Re2 {[%clk 0:00:08]}  Rc1 {[%clk 0:00:01]} 35. f3 {[%clk 0:00:08]}  Rc2 {[%clk 0:00:01]} 36. Rxc2 {[%clk 0:00:07]}  Qxc2+ {[%clk 0:00:02]} 37. Kh3 {[%clk 0:00:08]}  Qxa2 {[%clk 0:00:03]} 38. Qe4 {[%clk 0:00:07]}  Qd5 {[%clk 0:00:03]} 39. Qf4 {[%clk 0:00:06]}  a2 {[%clk 0:00:02]} 40. Qc1 {[%clk 0:00:06]}  a1=Q {[%clk 0:00:03]} 41. Qxa1 {[%clk 0:00:06]}  Qxf3 {[%clk 0:00:03]} 42. Qxa7 {[%clk 0:00:06]}  Qxh5+ {[%clk 0:00:03]} 43. Kg2 {[%clk 0:00:06]}  Qe2+ {[%clk 0:00:04]} 44. Kh3 {[%clk 0:00:07]}  Qd3 {[%clk 0:00:04]} 45. Qc5 {[%clk 0:00:05]}  Qf5+ {[%clk 0:00:04]} 46. Kg2 {[%clk 0:00:05]}  Qf7 {[%clk 0:00:04]} 47. Qd6 {[%clk 0:00:05]}  Kg7 {[%clk 0:00:04]} 48. g4 {[%clk 0:00:04]}  Qe7 {[%clk 0:00:03]} 49. Qd4 {[%clk 0:00:03]}  Qf7 {[%clk 0:00:03]} 50. Kg3 {[%clk 0:00:04]}  Ne7 {[%clk 0:00:02]} 51. Qxd7 {[%clk 0:00:04]}  Nf5+ {[%clk 0:00:03]} 52. gxf5 {[%clk 0:00:04]}  Qxd7 {[%clk 0:00:04]} 53. f6+ {[%clk 0:00:04]}  Kf7 {[%clk 0:00:04]} 54. Kg4 {[%clk 0:00:05]}  Qd5 {[%clk 0:00:05]} 55. Kh5 {[%clk 0:00:05]}  Qxe5+ {[%clk 0:00:05]} 56. Kxh6 {[%clk 0:00:06]}  Kxf6 {[%clk 0:00:05]} 57. Kh7 {[%clk 0:00:05]}  Qg5 {[%clk 0:00:06]} 58. Kh8 {[%clk 0:00:06]}  Qg7# {[%clk 0:00:07]} 0-1


[Site "https://www.chess.com"]

[Event "Titled Tuesday Blitz August 02 Early 2022"]
[White "Le, Tuan Minh"]
[Black "Samunenkov, Ihor"]
[WhiteFideId "12401153"]
[BlackFideId "14187086"]
[WhiteElo "2530"]
[BlackElo "2409"]
[Result "1-0"]
[Round "05"]
[TimeControl "180+1"]
[Date "2022.08.02"]
[WhiteClock "0:00:47"]
[BlackClock "0:00:03"]

1. d4 {[%clk 0:03:00]}  d5 {[%clk 0:02:59]} 2. Nf3 {[%clk 0:03:00]}  Nf6 {[%clk 0:02:58]} 3. Bf4 {[%clk 0:03:00]}  c5 {[%clk 0:02:58]} 4. c3 {[%clk 0:03:00]}  Nc6 {[%clk 0:02:58]} 5. e3 {[%clk 0:03:00]}  Qb6 {[%clk 0:02:58]} 6. Qc2 {[%clk 0:03:00]}  Bf5 {[%clk 0:02:56]} 7. dxc5 {[%clk 0:03:00]}  Bxc2 {[%clk 0:02:20]} 8. cxb6 {[%clk 0:03:00]}  axb6 {[%clk 0:02:14]} 9. Na3 {[%clk 0:03:00]}  Bf5 {[%clk 0:02:11]} 10. Nb5 {[%clk 0:02:59]}  O-O-O {[%clk 0:02:00]} 11. Bc7 {[%clk 0:02:25]}  Rd7 {[%clk 0:01:50]} 12. Bxb6 {[%clk 0:02:23]}  e5 {[%clk 0:01:44]} 13. a4 {[%clk 0:02:23]}  Ne4 {[%clk 0:01:17]} 14. a5 {[%clk 0:02:20]}  Bc5 {[%clk 0:01:18]} 15. Bd3 {[%clk 0:02:14]}  Be6 {[%clk 0:00:44]} 16. Bxe4 {[%clk 0:01:53]}  dxe4 {[%clk 0:00:45]} 17. Ng5 {[%clk 0:01:53]}  Bc4 {[%clk 0:00:39]} 18. Nxe4 {[%clk 0:01:23]}  Be7 {[%clk 0:00:21]} 19. Na7+ {[%clk 0:01:23]}  Nxa7 {[%clk 0:00:21]} 20. Bxa7 {[%clk 0:01:24]}  Bd5 {[%clk 0:00:16]} 21. f3 {[%clk 0:01:21]}  f5 {[%clk 0:00:14]} 22. Ng3 {[%clk 0:01:21]}  Bh4 {[%clk 0:00:05]} 23. O-O {[%clk 0:01:21]}  Bxg3 {[%clk 0:00:06]} 24. hxg3 {[%clk 0:01:22]}  Bc4 {[%clk 0:00:07]} 25. Rf2 {[%clk 0:01:15]}  Bb3 {[%clk 0:00:07]} 26. Ra3 {[%clk 0:01:14]}  Rd1+ {[%clk 0:00:07]} 27. Kh2 {[%clk 0:01:14]}  Bc4 {[%clk 0:00:07]} 28. b3 {[%clk 0:01:12]}  Be6 {[%clk 0:00:05]} 29. a6 {[%clk 0:00:59]}  h5 {[%clk 0:00:03]} 30. Bc5 {[%clk 0:00:53]}  Kb8 {[%clk 0:00:04]} 31. axb7 {[%clk 0:00:48]}  Kxb7 {[%clk 0:00:04]} 32. Ra7+ {[%clk 0:00:49]}  Kb8 {[%clk 0:00:05]} 33. Re7 {[%clk 0:00:48]}  Bxb3 {[%clk 0:00:03]} 34. Rb2 {[%clk 0:00:47]} 1-0


[Site "https://www.chess.com"]

[Event "Titled Tuesday Blitz August 02 Early 2022"]
[White "Madaminov, Mukhiddin"]
[Black "Shimanov, Aleksandr"]
[WhiteFideId "14210703"]
[BlackFideId "4198603"]
[WhiteElo "2011"]
[BlackElo "2605"]
[Result "1/2-1/2"]
[Round "05"]
[TimeControl "180+1"]
[Date "2022.08.02"]
[WhiteClock "0:00:06"]
[BlackClock "0:00:07"]

1. d4 {[%clk 0:03:00]}  Nf6 {[%clk 0:02:58]} 2. Nc3 {[%clk 0:03:01]}  d5 {[%clk 0:02:52]} 3. Bf4 {[%clk 0:02:59]}  c5 {[%clk 0:02:46]} 4. e4 {[%clk 0:02:58]}  Nxe4 {[%clk 0:02:46]} 5. Nxe4 {[%clk 0:02:56]}  dxe4 {[%clk 0:02:47]} 6. dxc5 {[%clk 0:02:50]}  Qa5+ {[%clk 0:02:46]} 7. c3 {[%clk 0:02:50]}  Qxc5 {[%clk 0:02:43]} 8. Qa4+ {[%clk 0:02:50]}  Nc6 {[%clk 0:02:43]} 9. Qxe4 {[%clk 0:02:49]}  g6 {[%clk 0:02:43]} 10. Nf3 {[%clk 0:02:40]}  Bg7 {[%clk 0:02:43]} 11. Qe3 {[%clk 0:02:35]}  Qxe3+ {[%clk 0:02:43]} 12. Bxe3 {[%clk 0:02:34]}  O-O {[%clk 0:02:43]} 13. O-O-O {[%clk 0:02:32]}  Be6 {[%clk 0:02:29]} 14. Kb1 {[%clk 0:02:28]}  Rfd8 {[%clk 0:02:12]} 15. Be2 {[%clk 0:02:24]}  h6 {[%clk 0:02:07]} 16. Rxd8+ {[%clk 0:02:20]}  Rxd8 {[%clk 0:02:06]} 17. Rd1 {[%clk 0:02:21]}  Rc8 {[%clk 0:02:02]} 18. Nd4 {[%clk 0:02:14]}  Nxd4 {[%clk 0:01:49]} 19. Bxd4 {[%clk 0:02:15]}  Bf5+ {[%clk 0:01:43]} 20. Kc1 {[%clk 0:02:10]}  b6 {[%clk 0:01:38]} 21. h4 {[%clk 0:01:39]}  Be6 {[%clk 0:01:22]} 22. a3 {[%clk 0:01:35]}  g5 {[%clk 0:01:17]} 23. hxg5 {[%clk 0:01:26]}  hxg5 {[%clk 0:01:17]} 24. g3 {[%clk 0:01:25]}  Bf5 {[%clk 0:00:59]} 25. Bf3 {[%clk 0:01:17]}  Rd8 {[%clk 0:00:45]} 26. Be3 {[%clk 0:01:17]}  Rxd1+ {[%clk 0:00:42]} 27. Kxd1 {[%clk 0:01:17]}  g4 {[%clk 0:00:42]} 28. Bc6 {[%clk 0:01:17]}  Be5 {[%clk 0:00:42]} 29. Kd2 {[%clk 0:01:16]}  Kf8 {[%clk 0:00:40]} 30. a4 {[%clk 0:01:13]}  e6 {[%clk 0:00:36]} 31. a5 {[%clk 0:01:13]}  Bc7 {[%clk 0:00:35]} 32. axb6 {[%clk 0:01:12]}  axb6 {[%clk 0:00:35]} 33. c4 {[%clk 0:01:07]}  Ke7 {[%clk 0:00:33]} 34. b4 {[%clk 0:01:07]}  Bb1 {[%clk 0:00:29]} 35. c5 {[%clk 0:01:01]}  bxc5 {[%clk 0:00:29]} 36. Bxc5+ {[%clk 0:01:02]}  Kd8 {[%clk 0:00:25]} 37. b5 {[%clk 0:01:00]}  Ba5+ {[%clk 0:00:22]} 38. Ke3 {[%clk 0:00:58]}  Bc3 {[%clk 0:00:22]} 39. b6 {[%clk 0:00:53]}  Be5 {[%clk 0:00:19]} 40. Bb5 {[%clk 0:00:38]}  Ba2 {[%clk 0:00:17]} 41. Be2 {[%clk 0:00:37]}  f5 {[%clk 0:00:17]} 42. Bb5 {[%clk 0:00:27]}  Bd5 {[%clk 0:00:17]} 43. Kd3 {[%clk 0:00:23]}  Kc8 {[%clk 0:00:16]} 44. Ba6+ {[%clk 0:00:19]}  Kb8 {[%clk 0:00:16]} 45. Be3 {[%clk 0:00:19]}  Bd6 {[%clk 0:00:14]} 46. Bf4 {[%clk 0:00:19]}  e5 {[%clk 0:00:14]} 47. Be3 {[%clk 0:00:19]}  Be6 {[%clk 0:00:12]} 48. Bc4 {[%clk 0:00:16]}  Bd7 {[%clk 0:00:12]} 49. Bd5 {[%clk 0:00:15]}  Bb5+ {[%clk 0:00:12]} 50. Bc4 {[%clk 0:00:14]}  Bc6 {[%clk 0:00:12]} 51. Be6 {[%clk 0:00:14]}  Be4+ {[%clk 0:00:12]} 52. Kc4 {[%clk 0:00:12]}  Kb7 {[%clk 0:00:12]} 53. Bd5+ {[%clk 0:00:13]}  Bxd5+ {[%clk 0:00:10]} 54. Kxd5 {[%clk 0:00:14]}  Bb8 {[%clk 0:00:10]} 55. Bc5 {[%clk 0:00:14]}  f4 {[%clk 0:00:06]} 56. Ke4 {[%clk 0:00:15]}  Kc6 {[%clk 0:00:05]} 57. Be7 {[%clk 0:00:07]}  fxg3 {[%clk 0:00:06]} 58. fxg3 {[%clk 0:00:06]}  Kxb6 {[%clk 0:00:06]} 59. Bf6 {[%clk 0:00:07]}  Kc6 {[%clk 0:00:06]} 60. Bxe5 {[%clk 0:00:08]}  Ba7 {[%clk 0:00:07]} 61. Kf5 {[%clk 0:00:07]}  Bf2 {[%clk 0:00:07]} 62. Kxg4 {[%clk 0:00:06]}  Bxg3 {[%clk 0:00:07]} 1/2-1/2


[Site "https://www.chess.com"]